[Event "Grand Prix Romania 1st Stage 2024"]
[Site "Bucuresti"]
[Date "2024.03.23"]
[Round "1.19"]
[White "Jianu, Vlad-Cristian"]
[Black "Savu, Victor-Xavier"]
[Result "1-0"]
[ECO "E01"]
[WhiteElo "2491"]
[BlackElo "1801"]
[Annotator "TA"]
[PlyCount "115"]
[EventDate "2024.03.20"]
[EventCountry "ROU"]
[SourceTitle "playchess.com"]
[Source "ChessBase"]
[SourceQuality "1"]
[TimeControl "900+5"]

{[%evp 15,115,30,51,37,61,58,72,63,69,25,59,56,59,43,65,48,62,45,83,65,83,57,69,59,77,67,94,85,89,89,149,157,156,152,149,104,171,170,158,165,182,160,170,147,201,147,172,140,162,161,173,162,220,185,268,269,276,276,426,425,425,408,416,412,510,504,582,579,567,479,814,795,828,822,1122,1109,3225,5123,5247,5111,2298,2261,29980,29981,29981,29982,29982,29983,29983,29984,29986,29984,29983,29984,29988,29986,29986,29987,29987,29988,29989,29989]} 1. d4 {[%emt 0:00:03]} d5 {[%emt 0:00:01]} 2. Nf3 {[%emt 0:00:03]} Nf6 {[%emt 0:00:03]} 3. g3 {[%emt 0:00:06]} e6 {[%emt 0:00:29]} 4. Bg2 {[%emt 0:00:02]} Bd6 {[%emt 0:00:07]} 5. O-O {[%emt 0:00:07]} O-O {[%emt 0:00:04]} 6. c4 {[%emt 0:00:02]} c6 {[%emt 0:00:07]} 7. Nc3 {[%emt 0:00:17]} Nbd7 {[%emt 0:00:10]} 8. Nd2 {[%emt 0:00:13]} Re8 {[%emt 0:00:22]} 9. e4 {[%emt 0:00:03] Black must now prevent e5.} dxe4 {[%emt 0:00:04]} 10. Ndxe4 {[%emt 0:00:03]} Nxe4 {[%emt 0:00:18]} 11. Nxe4 {[%emt 0:00:02] White is better.} Be7 {[%emt 0:00:08]} 12. Be3 {[%emt 0:00:34]} Nf6 {[%emt 0:00:56]} 13. Nc3 {[%emt 0:00:03]} Bd7 {[%emt 0:01:18]} 14. Re1 {[%emt 0:00:23]} Rc8 {[%emt 0:00:24]} 15. h3 {[%emt 0:00:40]} Bd6 {[%emt 0:01:35]} 16. Qd2 {[%emt 0:01:25]} Qc7 {[%emt 0:00:57]} 17. Rad1 {[%emt 0:01:19]} Rcd8 {[%emt 0:00:22]} 18. Bg5 {[%emt 0:01:36]} Be7 {[%emt 0:00:11]} 19. a3 {[%emt 0:00:36]} a6 {[%emt 0:00:46]} 20. Qe2 {[%emt 0:02:02]} h6 {[%emt 0:01:00]} 21. Bf4 {[%emt 0:00:03]} Bd6 {[%emt 0:00:02]} 22. Be5 {[%emt 0:00:03]} Bxe5 {[%emt 0:00:26]} (22... Bc8 $142) 23. dxe5 $16 {[%emt 0:00:15]} ({Don't do} 23. Qxe5 Rc8 $14) 23... Nh7 {[%emt 0:00:04]} 24. Rd6 $36 {[%emt 0:00:51][%mdl 2048] White is on the roll. White is much more active.} Bc8 {[%emt 0:01:18]} 25. Red1 {[%emt 0:00:18] [#] And now Qd2 would win.} Rd7 {[%emt 0:00:48]} (25... Rxd6 $16 26. exd6 Qd8) 26. Rxd7 {[%emt 0:01:13]} Bxd7 {[%emt 0:00:03]} 27. Ne4 {[%emt 0:00:03]} Rd8 {[%emt 0:00:47]} 28. Nd6 {[%emt 0:00:38]} Nf8 {[%emt 0:00:33]} 29. Be4 {[%emt 0:00:19]} Bc8 {[%emt 0:00:23]} (29... Be8 $16 30. b4 f5) 30. Qe3 {[%emt 0:00:35]} Nd7 {[%emt 0:00:36]} 31. f4 {[%emt 0:00:10] Black is weak on the light squares} Qb6 {[%emt 0:00:42]} 32. Qf2 {[%emt 0:00:54] [#] Hoping for Nxc8.} Qxf2+ {[%emt 0:00:24]} 33. Kxf2 {[%emt 0:00:01] Nxc8 is the strong threat.} Nb8 {[%emt 0:01:30]} (33... Nc5 $142) 34. c5 {[%emt 0:00:47]} Kf8 {[%emt 0:00:15]} (34... a5 {was worth a try.} 35. Bd3 Kf8) 35. Rd4 $18 {[%emt 0:00:52]} Ke7 {[%emt 0:00:06]} 36. Rb4 {[%emt 0:00:02]} a5 {[%emt 0:00:23]} (36... Nd7 $142 37. Nxb7 Bxb7) 37. Nxc8+ {[%emt 0:00:19]} Rxc8 {[%emt 0:00:04]} 38. Rxb7+ {[%emt 0:00:01][%mdl 4096] Endgame. KRB-KRN} Nd7 {[%emt 0:00:17]} 39. Ra7 {[%emt 0:00:14]} a4 {[%emt 0:00:03]} 40. Ke3 {[%emt 0:00:21]} Kd8 {[%emt 0:00:19]} 41. Kd4 {[%emt 0:00:03]} Rc7 {[%emt 0:00:00]} 42. Rxa4 {[%emt 0:00:07]} Rb7 {[%emt 0:00:03]} (42... Nb8 $142 43. Kc4 Kd7) 43. b4 {[%emt 0:00:20][%cal Bb2b4,Bb4b5][%mdl 32]} Kc7 {[%emt 0:00:03]} 44. Ra8 {[%emt 0:00:05]} Nb8 {[%emt 0:00:04]} 45. Kc4 {[%emt 0:00:03]} Kc8 {[%emt 0:00:04]} 46. Bxc6 {[%emt 0:00:03]} Rc7 {[%emt 0:00:02]} 47. b5 {[%emt 0:00:04]} f6 {[%emt 0:00:04]} 48. a4 {[%emt 0:00:18][%cal Ba3a4,Ba4a5,Ba5a6][%mdl 32] White wants to mate with a5.} fxe5 {[%emt 0:00:03]} 49. fxe5 {[%emt 0:00:01] White mates.} Rf7 {[%emt 0:00:04]} 50. a5 {[%emt 0:00:17]} Rf1 {[%emt 0:00:03]} 51. a6 {[%emt 0:00:02]} Rc1+ {[%emt 0:00:02]} 52. Kb4 {[%emt 0:00:03]} Kc7 {[%emt 0:00:17]} 53. Ra7+ {[%emt 0:00:01]} Kc8 {[%emt 0:00:01]} 54. Bb7+ {[%emt 0:00:05]} Kc7 {[%emt 0:00:10]} 55. Bd5+ {[%emt 0:00:08]} Kd8 {[%emt 0:00:05]} 56. Bxe6 {[%emt 0:00:02]} Rb1+ {[%emt 0:00:05]} 57. Ka5 {[%emt 0:00:01]} Re1 {[%emt 0:00:06]} 58. Rxg7 {[%emt 0:00:11] Weighted Error Value: White=0.15 (very precise) /Black=0.51.  Mistake:       	---       	Black=7      Inaccurate:     	White=3     	Black=3      OK:         	White=12    	Black=5      Best:        	White=1     	---} 1-0

[Event "Grand Prix Romania 1st Stage 2024"]
[Site "Bucuresti"]
[Date "2024.03.23"]
[Round "1.20"]
[White "Donici-Maier, David"]
[Black "Parligras, Mircea-Emilian"]
[Result "0-1"]
[ECO "B87"]
[WhiteElo "1883"]
[BlackElo "2543"]
[Annotator "TA"]
[PlyCount "104"]
[EventDate "2024.03.20"]
[EventCountry "ROU"]
[SourceTitle "playchess.com"]
[Source "ChessBase"]
[SourceQuality "1"]
[TimeControl "900+5"]

{[%evp 18,104,-31,-60,-43,-46,-7,-89,-73,-125,-124,-322,-102,-109,-81,-122,-122,-128,-133,-152,-150,-170,-165,-163,-160,-160,-142,-145,-153,-152,-165,-158,-165,-181,-171,-190,-193,-193,-190,-192,-165,-151,-146,-146,-146,-193,-196,-198,-188,-260,-267,-279,-282,-352,-342,-342,-332,-433,-420,-595,-612,-693,-633,-761,-786,-760,-766,-860,-758,-854,-854,-953,-973,-1255,-885,-2267,-1444,-4831,-4458,-29995,-29974,-29975,-29976,-29985,-29986,-29984,-29985,-29977,0]} 1. e4 {[%emt 0:00:05]} c5 {[%emt 0:00:03]} 2. Nf3 {[%emt 0:00:02]} d6 {[%emt 0:00:01]} 3. d4 {[%emt 0:00:01]} cxd4 {[%emt 0:00:02]} 4. Nxd4 {[%emt 0:00:02]} Nf6 {[%emt 0:00:01]} 5. Nc3 {[%emt 0:00:02]} a6 {[%emt 0:00:01]} 6. Bc4 {[%emt 0:00:04]} e6 {[%emt 0:00:02]} 7. Bb3 {[%emt 0:00:03]} b5 {[%emt 0:00:21]} 8. O-O {[%emt 0:00:11]} Be7 {[%emt 0:00:28]} 9. f4 {[%emt 0:00:37]} O-O {[%emt 0:01:08]} 10. Kh1 {[%emt 0:01:02]} b4 {[%emt 0:01:08]} 11. Na4 {[%emt 0:00:26]} Nxe4 {[%emt 0:00:14] Threatening ...Bb7.} 12. Be3 {[%emt 0:01:20]} (12. f5 $11 d5 13. fxe6 fxe6 14. Rxf8+ Bxf8 15. Be3) 12... Nc5 {[%emt 0:00:39] Black is better.} (12... Bb7 {is more complex.} 13. f5 e5 14. f6 exd4 15. fxe7 Qxe7 16. Qxd4 Nc6) 13. Nxc5 {[%emt 0:01:52]} (13. c4 $142) 13... dxc5 $17 {[%emt 0:00:02]} 14. Qf3 $2 {[%emt 0:00:06]} (14. Nf3 $17) 14... Ra7 $2 {[%emt 0:00:16]} (14... cxd4 $19 {is more deadly.} 15. Qxa8 Qc7 (15... dxe3 16. Qxb8 e2 17. Rfe1 $15)) 15. Ne2 {[%emt 0:00:56]} Bb7 {[%emt 0:00:26]} 16. Qg4 {[%emt 0:00:02]} Nd7 {[%emt 0:00:23][%cal Bb8d7,Bd7f6,Bf6g4][%mdl 32]} 17. Rad1 {[%emt 0:00:46]} Nf6 {[%emt 0:00:51]} 18. Rxd8 {[%emt 0:02:11]} Nxg4 {[%emt 0:00:03]} 19. Rxf8+ {[%emt 0:00:01]} Kxf8 {[%emt 0:00:35]} 20. Bg1 {[%emt 0:00:02]} g6 {[%emt 0:01:30]} 21. Nc1 {[%emt 0:01:48]} Be4 {[%emt 0:02:15] Black is more active.} 22. Nd3 {[%emt 0:01:15]} Rc7 {[%emt 0:00:09] [#] And now ...c4 would win.} 23. Bc4 {[%emt 0:00:09]} a5 {[%emt 0:00:03]} 24. Re1 {[%emt 0:00:12]} Nf6 {[%emt 0:00:11]} 25. h3 {[%emt 0:01:06]} h5 {[%emt 0:00:31]} 26. Bf2 {[%emt 0:00:33]} Bd5 {[%emt 0:00:21]} 27. Ne5 {[%emt 0:00:23]} Ne4 {[%emt 0:00:19]} 28. Kg1 {[%emt 0:00:45]} Nxf2 {[%emt 0:00:36]} 29. Kxf2 {[%emt 0:00:03]} Bf6 {[%emt 0:00:07] [#] ...Bxe5 would now be deadly.} 30. Bxd5 {[%emt 0:00:48]} exd5 {[%emt 0:00:04]} 31. Rd1 {[%emt 0:00:02]} (31. b3 $17) 31... Bxe5 $19 {[%emt 0:00:19]} 32. fxe5 {[%emt 0:00:02][%mdl 4096] Endgame. KR-KR} Rd7 {[%emt 0:00:29]} 33. Kf3 {[%emt 0:00:02]} (33. Ke3 $142) 33... Ke7 {[%emt 0:00:03]} 34. g4 {[%emt 0:00:10]} hxg4+ {[%emt 0:00:04]} 35. Kxg4 {[%emt 0:00:21]} Ke6 {[%emt 0:00:09]} 36. Kf4 {[%emt 0:00:11]} Rd8 {[%emt 0:00:13]} 37. c3 {[%emt 0:00:18]} Rh8 {[%emt 0:00:04]} 38. cxb4 {[%emt 0:00:03]} (38. Kg4 {keeps fighting.}) 38... axb4 {[%emt 0:00:12]} 39. Kg4 {[%emt 0:00:02]} Rh5 {[%emt 0:00:20][%cal Oc5c4]} 40. a3 {[%emt 0:00:04]} bxa3 {[%emt 0:00:12]} 41. bxa3 {[%emt 0:00:01]} Rxe5 {[%emt 0:00:03]} 42. Rb1 {[%emt 0:00:03]} Re4+ {[%emt 0:00:08]} 43. Kg5 {[%emt 0:00:14]} Re3 {[%emt 0:00:14]} 44. Rb6+ {[%emt 0:00:05]} Ke5 {[%emt 0:00:06]} 45. a4 {[%emt 0:00:02]} Rxh3 {[%emt 0:00:15]} 46. a5 {[%emt 0:00:01]} Rg3+ {[%emt 0:00:14]} 47. Kh4 {[%emt 0:00:03]} Ra3 {[%emt 0:00:02][%cal Oe5f5] ( -> ...Kf5!)} 48. a6 {[%emt 0:00:08]} d4 {[%emt 0:00:17] Black mates.} 49. Rb7 {[%emt 0:00:09]} Rxa6 {[%emt 0:00:04]} 50. Rxf7 {[%emt 0:00:02]} d3 {[%emt 0:00:06]} 51. Re7+ {[%emt 0:00:04]} Kd4 {[%emt 0:00:06]} 52. Rd7+ {[%emt 0:00:07]} Ke5 $2 {[%emt 0:02:55][%mdl 32768] Weighted Error Value: White=0.66/Black=0.18 (very precise) .  Loses game:     	White=1     	---        Missed win:     	---       	Black=1      Mistake:       	White=5     	---        Inaccurate:     	White=2     	Black=1      OK:         	White=7     	Black=12     Best:        	White=3     	Black=2     . Sensor Board Error (Ke4/e5)?} (52... Ke4 {mates} 53. Rh7 d2 54. Rd7 Ke3 55. Kg5 Re6 56. Kh6 Ke2 57. Kg7 d1=Q (57... d1=B $2 58. Rc7 $19) 58. Rxd1 Kxd1 59. Kf7 Ra6 60. Kg7 c4 61. Kh6 c3 62. Kg5 c2 63. Kg4 c1=Q (63... c1=B {leads to mate.} 64. Kf3 Ra4 65. Kf2 Rf4+ 66. Kg3 Ke2 67. Kg2 g5 68. Kg1 Kf3 69. Kf1 Rg4 70. Ke1 Rg1#) 64. Kf3 Ra3+ 65. Kg2 Qg5+ 66. Kh2 Qg4 67. Kh1 Rh3#) 0-1

[Event "Grand Prix Romania 1st Stage 2024"]
[Site "Bucuresti"]
[Date "2024.03.23"]
[Round "1.21"]
[White "Zajic, Milan"]
[Black "Hristova, Ivelina"]
[Result "1-0"]
[ECO "B31"]
[WhiteElo "2436"]
[BlackElo "1809"]
[Annotator "TA"]
[PlyCount "88"]
[EventDate "2024.03.20"]
[EventCountry "ROU"]
[SourceTitle "playchess.com"]
[Source "ChessBase"]
[SourceQuality "1"]
[TimeControl "900+5"]

{[%evp 16,88,28,23,50,-25,-1,-27,-9,-20,49,53,116,-72,-60,-111,-112,-125,-109,-154,-150,-140,-136,-146,-72,-71,-85,-70,0,0,143,127,296,300,288,221,251,42,38,0,0,0,0,0,0,0,0,0,0,0,0,0,0,-12,17,18,52,72,73,43,50,0,0,0,39,39,47,53,325,318,408,389,454,428,673]} 1. e4 {[%emt 0:00:02]} c5 {[%emt 0:00:01]} 2. Nf3 {[%emt 0:00:02]} Nc6 {[%emt 0:00:01]} 3. Bb5 {[%emt 0:00:02]} g6 {[%emt 0:00:02]} 4. O-O {[%emt 0:00:03]} Bg7 {[%emt 0:00:03]} 5. c3 {[%emt 0:00:02]} e5 {[%emt 0:00:05]} 6. d4 {[%emt 0:00:09]} cxd4 {[%emt 0:00:40]} 7. cxd4 {[%emt 0:00:02]} Nxd4 {[%emt 0:00:27]} 8. Nxd4 {[%emt 0:00:03]} exd4 {[%emt 0:00:01]} 9. Bf4 {[%emt 0:00:38]} Ne7 {[%emt 0:01:39]} 10. Qc2 {[%emt 0:01:23]} (10. Nd2 $14) 10... Qb6 $11 {[%emt 0:00:23]} 11. Na3 {[%emt 0:00:22] Black must now prevent Nc4.} O-O $1 {[%emt 0:00:57] Black has an edge.} 12. Rac1 {[%emt 0:04:25]} Nc6 {[%emt 0:03:28]} (12... d6 $11) 13. Bd6 $14 {[%emt 0:00:33][%mdl 1024] White has compensation.} Re8 {[%emt 0:00:01]} (13... Rd8 $14) 14. Bc5 $2 {[%emt 0:02:08] White is more active.} (14. Bc4 $1 $16 {and life is bright.}) 14... Qd8 $17 {[%emt 0:02:00] aiming for ...d6.} 15. Rfd1 {[%emt 0:03:16]} (15. Nc4 $15 Re6 16. Nd6) 15... b6 {[%emt 0:03:26]} 16. Bd6 {[%emt 0:00:16][%cal Od6g3]} Bb7 {[%emt 0:00:10]} 17. Re1 {[%emt 0:00:59]} a6 {[%emt 0:00:10]} 18. Bf1 {[%emt 0:00:31]} Re6 {[%emt 0:00:27]} 19. Bg3 {[%emt 0:00:01]} Qe7 {[%emt 0:00:24]} ({Black should play} 19... b5 20. Qb3 d5 21. Qxd5 (21. exd5 Rxe1 22. Rxe1 Na5 $17) 21... d3) 20. Nc4 {[%emt 0:00:15] [#]} d5 $1 {[%emt 0:00:26]} 21. Nxb6 {[%emt 0:00:42]} dxe4 {[%emt 0:00:06]} (21... Nb4 $1 $15 22. Qc7 Qxc7 23. Bxc7 Rae8) 22. Nxa8 $11 {[%emt 0:00:09]} Bxa8 {[%emt 0:00:03] [#]} (22... d3 $1 $11 {keeps the balance.} 23. Bxd3 exd3 24. Rxe6 Qxe6 25. Qxd3 Bxa8 (25... Nd4 $2 26. Nc7 $18)) 23. Bc4 $1 $16 {[%emt 0:00:02]} Nb4 $2 {[%emt 0:00:14]} (23... d3 $16 24. Qd2 h5 25. Bxe6 Qxe6) 24. Qb3 $18 {[%emt 0:00:19]} Rc6 {[%emt 0:00:35]} 25. a3 {[%emt 0:00:12]} d3 {[%emt 0:00:07] [#]} 26. Red1 {[%emt 0:00:14]} (26. Qxb4 Qxb4 27. axb4 d2 $11) (26. axb4 d2 $14) (26. Bf4 $1 $18 Nc2 27. Bd5 (27. Qb8+ Qf8 $16) 27... Nxe1 28. Bxc6) 26... Nc2 $14 {[%emt 0:00:05]} 27. Bd5 {[%emt 0:00:18]} Rc8 $36 {[%emt 0:00:09][%mdl 2048] Inhibits Qb8. ...Bh6 would now be deadly. Black is more active.} 28. Bxa8 {[%emt 0:00:01]} Rxa8 {[%emt 0:00:01]} 29. Rxc2 {[%emt 0:00:10]} dxc2 {[%emt 0:00:01]} 30. Qxc2 {[%emt 0:00:01]} Qb7 {[%emt 0:00:16]} 31. b4 {[%emt 0:00:03]} Rc8 {[%emt 0:00:09]} 32. Qd2 {[%emt 0:00:01]} Qc6 {[%emt 0:00:19]} 33. h3 {[%emt 0:00:04][%cal Bh2h3,Bh3h4][%mdl 32]} h5 {[%emt 0:00:10]} 34. Qd6 {[%emt 0:00:07]} Qc4 {[%emt 0:00:25]} 35. Qe7 {[%emt 0:00:06]} Qe6 {[%emt 0:00:21]} 36. Qxe6 {[%emt 0:00:06]} fxe6 {[%emt 0:00:01][%mdl 4096] Endgame. KRB-KRB} 37. h4 {[%emt 0:00:15]} Rc6 {[%emt 0:00:07]} 38. Rd7 {[%emt 0:00:01]} (38. Bf4 $14) 38... Bb2 $11 {[%emt 0:00:04]} 39. a4 {[%emt 0:00:06][%cal Ba3a4,Ba4a5][%mdl 32]} Rb6 {[%emt 0:00:04]} 40. Bd6 {[%emt 0:00:06] Threatens to win with Bc5.} Ba3 {[%emt 0:00:01]} 41. Bc5 {[%emt 0:00:02]} Rc6 {[%emt 0:00:02][%mdl 8192]} ({Better is} 41... Rb8 $1 $14) 42. a5 $18 {[%emt 0:00:09]} e5 {[%emt 0:00:14]} 43. Kf1 {[%emt 0:00:03]} Rf6 {[%emt 0:00:05]} 44. Ke2 {[%emt 0:00:02]} Rf7 {[%emt 0:00:15] What a bad dream for Black.   Weighted Error Value: White=0.30/Black=0.44.  Loses game:     	---       	Black=2      Missed win:     	White=1     	---        Mistake:       	White=4     	Black=6      Inaccurate:     	White=4     	Black=3      OK:         	White=18    	Black=14     Best:        	White=2     	---        Strong:       	---       	Black=1} (44... Bb2 $142 45. Ke3 Bd4+ 46. Bxd4 (46. Kxe4 Rf4+ 47. Kd3 Rf6 $18) 46... exd4+ 47. Kxe4 (47. Rxd4 Kf7 $18) 47... d3) 1-0

[Event "Grand Prix Romania 1st Stage 2024"]
[Site "Bucuresti"]
[Date "2024.03.23"]
[Round "1.22"]
[White "Stanica, Andrei"]
[Black "Grigore, George-Gabriel"]
[Result "0-1"]
[ECO "B22"]
[WhiteElo "1867"]
[BlackElo "2423"]
[Annotator "TA"]
[PlyCount "140"]
[EventDate "2024.03.20"]
[EventCountry "ROU"]
[SourceTitle "playchess.com"]
[Source "ChessBase"]
[SourceQuality "1"]
[TimeControl "900+5"]

{[%evp 27,140,22,41,39,37,8,8,-17,-16,-94,-69,-85,-83,-79,-75,-111,-76,-87,-81,-78,-87,-98,-100,-103,-88,-83,-87,-90,-86,-86,-80,-88,-83,-86,-83,-86,-73,-80,-70,-57,-58,-61,-53,-53,-43,-68,-71,-73,-64,-64,-59,-59,-48,-48,-48,-48,-48,-65,-48,-197,-197,-197,-197,-197,-197,-197,-197,-147,-147,-147,-147,-147,-147,-147,-121,-147,-147,-147,-145,-147,-147,-281,-133,-262,-226,-1198,-858,-783,-789,-758,-668,-605,-510,-518,-510,-416,0,-178,-178,-1836,-1820,-1857,-1916,-1508,-1299,-5165,-4132,-6079,-4458,-5206,-5165,-29977,-29977,-6644,-7039]} 1. e4 {[%emt 0:00:03]} c5 {[%emt 0:00:07]} 2. c3 {[%emt 0:00:01]} d5 {[%emt 0:00:05]} 3. exd5 {[%emt 0:00:01]} Qxd5 {[%emt 0:00:01]} 4. d4 {[%emt 0:00:01]} Nc6 {[%emt 0:00:06]} 5. Nf3 {[%emt 0:00:02]} Nf6 {[%emt 0:00:15]} 6. Be3 {[%emt 0:00:01]} cxd4 {[%emt 0:00:10]} 7. cxd4 {[%emt 0:00:02]} e6 {[%emt 0:00:02]} 8. Nc3 {[%emt 0:00:04]} Qd6 {[%emt 0:00:08]} 9. a3 {[%emt 0:00:02]} Be7 {[%emt 0:00:05]} 10. Bd3 {[%emt 0:00:02]} O-O {[%emt 0:00:06]} 11. O-O {[%emt 0:00:03]} b6 {[%emt 0:00:03]} 12. Qe2 {[%emt 0:00:13]} Bb7 {[%emt 0:00:12]} 13. Rad1 {[%emt 0:00:05]} Rad8 {[%emt 0:01:35]} 14. Rfe1 {[%emt 0:00:22]} Rfe8 {[%emt 0:01:10]} 15. Bb1 {[%emt 0:00:18]} h6 {[%emt 0:02:22]} 16. h3 {[%emt 0:00:33]} Bf8 {[%emt 0:00:11]} 17. Bc1 {[%emt 0:04:30] Die Stellung ist ausgeglichen.} Ne7 {[%emt 0:01:46]} 18. Qc2 {[%emt 0:04:10]} (18. Ne5 $11) 18... Bxf3 $17 {[%emt 0:02:17]} 19. gxf3 {[%emt 0:00:01]} Ned5 {[%emt 0:00:15]} 20. Ne4 {[%emt 0:01:15]} Qb8 {[%emt 0:00:14]} 21. Kh1 {[%emt 0:00:36]} Rc8 {[%emt 0:00:47]} 22. Qd3 {[%emt 0:00:23]} g6 {[%emt 0:00:11]} 23. Nxf6+ {[%emt 0:00:38]} Nxf6 {[%emt 0:00:03]} 24. Qe3 {[%emt 0:00:10]} Bg7 {[%emt 0:00:21]} 25. Qe5 {[%emt 0:00:12]} Nd5 {[%emt 0:00:58]} 26. Qxb8 {[%emt 0:00:17]} Rxb8 {[%emt 0:00:01]} 27. Ba2 {[%emt 0:00:09]} Red8 {[%emt 0:00:05]} 28. Be3 {[%emt 0:00:07]} Rbc8 {[%emt 0:00:45]} 29. Rc1 {[%emt 0:00:01]} Ne7 {[%emt 0:00:23]} 30. Rxc8 {[%emt 0:00:37]} Rxc8 {[%emt 0:00:05]} 31. Rd1 {[%emt 0:00:09]} Nd5 {[%emt 0:01:10]} 32. Rd2 {[%emt 0:01:24] Gegen Rc2 gerichtet.} f5 {[%emt 0:00:31]} 33. f4 {[%emt 0:00:29]} Kf7 {[%emt 0:00:02]} 34. Kg2 {[%emt 0:00:01]} Bf8 {[%emt 0:00:09] Schwarz steht deutlich aktiver.} 35. Kf3 {[%emt 0:00:12]} Bd6 {[%emt 0:00:07]} 36. Bxd5 {[%emt 0:00:07]} exd5 $15 {[%emt 0:00:02][%mdl 4096] Endspiel. KRB-KRB} 37. Ke2 {[%emt 0:00:05]} Ke6 {[%emt 0:00:28]} 38. Rd1 {[%emt 0:00:23]} Rc2+ {[%emt 0:00:14]} 39. Rd2 {[%emt 0:00:01]} Rc4 {[%emt 0:00:01]} 40. Rd1 {[%emt 0:00:18]} b5 {[%emt 0:00:02]} 41. Kd3 {[%emt 0:00:05]} a5 {[%emt 0:00:04]} 42. Rc1 {[%emt 0:00:03]} a4 {[%emt 0:00:23]} 43. Rxc4 {[%emt 0:00:04]} (43. Re1 $15) 43... dxc4+ {[%emt 0:00:01] KB-KB} 44. Kc3 {[%emt 0:00:10]} Kd5 {[%emt 0:00:04] [#] Droht stark ...Ke4.} 45. f3 {[%emt 0:00:01]} Be7 {[%emt 0:00:05]} 46. Bf2 {[%emt 0:00:05]} Kc6 {[%emt 0:00:11]} 47. Be1 {[%emt 0:00:06]} g5 {[%emt 0:00:22]} 48. Bd2 {[%emt 0:00:10]} gxf4 {[%emt 0:00:05]} 49. Bxf4 {[%emt 0:00:18]} h5 {[%emt 0:00:20]} 50. Bg3 {[%emt 0:00:00]} Kd5 {[%emt 0:00:00]} 51. Bf4 {[%emt 0:00:00]} Bf6 {[%emt 0:00:00]} 52. Be3 {[%emt 0:00:03]} Kc6 {[%emt 0:00:00]} 53. Bf4 {[%emt 0:00:03]} Bh4 {[%emt 0:00:00]} 54. Be5 {[%emt 0:00:04]} (54. Be3 $17) 54... Be1+ $19 {[%emt 0:00:03]} 55. Kc2 {[%emt 0:00:02]} Kd5 {[%emt 0:00:02]} 56. Kd1 $2 {[%emt 0:00:02]} (56. Bf6) 56... Bf2 {[%emt 0:00:04]} 57. Bf4 {[%emt 0:00:18]} Bxd4 {[%emt 0:00:11]} 58. Kc2 {[%emt 0:00:01]} Kc5 {[%emt 0:00:08]} 59. Bb8 {[%emt 0:00:02]} Kc6 {[%emt 0:00:05]} 60. Bf4 {[%emt 0:00:03]} Kb6 {[%emt 0:00:05]} 61. Bg3 {[%emt 0:00:08]} Kc5 {[%emt 0:00:06]} (61... Bf6 $142 62. Be1 Kc7) 62. Bb8 $1 {[%emt 0:00:01]} Bf6 {[%emt 0:00:03][%cal Oc4c3] ...c3! wäre nun fies.} 63. Bf4 $2 {[%emt 0:00:05] [#]} (63. Ba7+ Kd5 64. Be3) 63... c3 $1 {[%emt 0:00:04][%mdl 512]} 64. bxc3 {[%emt 0:00:04]} Kc4 {[%emt 0:00:02]} 65. Bd2 {[%emt 0:00:08]} Be7 {[%emt 0:00:04]} 66. Kb2 {[%emt 0:00:03]} Kd3 {[%emt 0:00:01]} 67. Be1 {[%emt 0:00:14]} Bf6 {[%emt 0:00:01]} 68. Bf2 {[%emt 0:00:06]} Bxc3+ {[%emt 0:00:03]} 69. Ka2 {[%emt 0:00:01]} Ke2 {[%emt 0:00:02][%csl LRf2,LRf3]} 70. Bc5 {[%emt 0:00:02]} Kxf3 {[%emt 0:00:01] Gewichteter Fehlerwert: Weiß=0.30/Schwarz=0.17 (sehr präzise) .  Fehler:       	Weiß=5     	Schwarz=1     Ungenau:       	Weiß=3     	Schwarz=1     OK:         	Weiß=15    	Schwarz=13    Bester:       	Weiß=5     	Schwarz=4     Stark:        	Weiß=1     	---        Brilliant:      	---       	Schwarz=1} 0-1

[Event "Grand Prix Romania 1st Stage 2024"]
[Site "Bucuresti"]
[Date "2024.03.23"]
[Round "1.24"]
[White "Petculescu, Diana-Silvana"]
[Black "Mikhalevski, Victor"]
[Result "0-1"]
[ECO "C45"]
[WhiteElo "1734"]
[BlackElo "2514"]
[Annotator "TA"]
[PlyCount "36"]
[EventDate "2024.03.20"]
[EventCountry "ROU"]
[SourceTitle "playchess.com"]
[Source "ChessBase"]
[SourceQuality "1"]
[TimeControl "900+5"]

{[%evp 17,36,3,12,-80,-82,-105,-88,-138,-160,-228,-215,-441,-439,-393,-405,-395,-346,-327,-331,-515,-516]} 1. e4 {[%emt 0:00:03]} e5 {[%emt 0:00:03]} 2. Nf3 {[%emt 0:00:02]} Nc6 {[%emt 0:00:06]} 3. d4 {[%emt 0:00:04]} exd4 {[%emt 0:00:03]} 4. Nxd4 {[%emt 0:00:02]} Nf6 {[%emt 0:00:01]} 5. Nxc6 {[%emt 0:00:42]} bxc6 {[%emt 0:00:02]} 6. e5 {[%emt 0:00:28]} Qe7 {[%emt 0:00:02]} 7. Qe2 {[%emt 0:01:07]} Nd5 {[%emt 0:00:02]} 8. c4 {[%emt 0:01:17]} Nb6 {[%emt 0:00:08]} 9. Nc3 {[%emt 0:01:09]} a5 {[%emt 0:00:27]} 10. a4 {[%emt 0:01:52]} (10. f4 $11) 10... Qb4 $17 {[%emt 0:01:33]} 11. Qe4 {[%emt 0:03:21]} Ba6 {[%emt 0:00:17][%cal Ra6c4]} 12. c5 {[%emt 0:01:24]} Bxf1 {[%emt 0:01:07]} (12... Qxc5 13. Bxa6 Rxa6 14. O-O $17) 13. Rxf1 {[%emt 0:00:53]} (13. cxb6 Qxe4+ 14. Nxe4 Bxg2 $19) (13. Qxb4 $17 axb4 14. cxb6 Bxg2 15. b7) 13... Bxc5 $19 {[%emt 0:00:13] White must now prevent ...Bd4.} ({Don't take} 13... Qxc5 14. f4) 14. Qf3 $2 {[%emt 0:00:45]} (14. Qxb4 {was called for.} axb4 15. Ne4) 14... Nc4 {[%emt 0:00:48][%cal Oe8g8]} 15. Qe2 {[%emt 0:01:48]} Bd4 {[%emt 0:00:36][%cal Oc4b2] [#] Hoping for ...Nxb2!} 16. Bd2 {[%emt 0:00:30]} Nxd2 {[%emt 0:00:30]} ({Stronger than} 16... Qxb2 17. Qxc4 Qxa1+ 18. Ke2 Bxc3 19. Rxa1 Bxa1 20. Qc5 $11) ({Worse is} 16... Bxe5 17. f4 $14) 17. Qxd2 {[%emt 0:00:13]} Bxe5 {[%emt 0:00:04][%cal Oe8g8]} 18. Qe2 {[%emt 0:00:16] [#]} (18. f4 {is a better defense.} Bf6 19. Qe3+ Kf8 20. O-O-O) 18... O-O $1 {[%emt 0:00:06][%csl LRc3,LRh2] White did not feel at home in the position after the opening.   Weighted Error Value: White=0.78/Black=0.08 (flawless) .  Mistake:       	White=4     	---        OK:         	White=2     	Black=7} 0-1